[Event "November 21 Early 2023"]
[Site "https://www.chess.com"]
[Date "2023.11.21"]
[Round "3"]
[White "Vignesh N R"]
[Black "elmusmolamas"]
[Result "1-0"]
[Board "63"]
[TimeControl "180+1"]
[WhiteFideId "25012215"]
[WhiteElo "2425"]
[BlackElo "2553"]
[WhiteTeam "IND"]
[WhiteClock "0:01:28"]
[BlackClock "0:00:20"]

1. Nf3 {[%clk 0:02:56]}  Nf6 {[%clk 0:02:58]} 2. c4 {[%clk 0:02:55]}  c6 {[%clk 0:02:51]} 3. g3 {[%clk 0:02:53]}  d5 {[%clk 0:02:52]} 4. Bg2 {[%clk 0:02:53]}  Bf5 {[%clk 0:02:42]} 5. O-O {[%clk 0:02:50]}  e6 {[%clk 0:02:42]} 6. Qb3 {[%clk 0:02:46]}  Qb6 {[%clk 0:02:42]} 7. d3 {[%clk 0:02:46]}  h6 {[%clk 0:02:41]} 8. cxd5 {[%clk 0:02:43]}  exd5 {[%clk 0:02:35]} 9. Qc2 {[%clk 0:02:37]}  Be7 {[%clk 0:02:30]} 10. Nc3 {[%clk 0:02:36]}  O-O {[%clk 0:02:27]} 11. e4 {[%clk 0:02:35]}  Bh7 {[%clk 0:02:27]} 12. Be3 {[%clk 0:02:34]}  Qa5 {[%clk 0:02:18]} 13. h3 {[%clk 0:02:29]}  Nbd7 {[%clk 0:02:17]} 14. a3 {[%clk 0:02:28]}  Rfe8 {[%clk 0:02:16]} 15. Rfe1 {[%clk 0:02:28]}  Bf8 {[%clk 0:02:16]} 16. b4 {[%clk 0:02:24]}  Qd8 {[%clk 0:02:12]} 17. Bd4 {[%clk 0:02:22]}  c5 {[%clk 0:01:37]} 18. bxc5 {[%clk 0:02:07]}  Bxc5 {[%clk 0:01:38]} 19. Qb2 {[%clk 0:01:51]}  Bxd4 {[%clk 0:00:53]} 20. Nxd4 {[%clk 0:01:52]}  Nc5 {[%clk 0:00:54]} 21. Rad1 {[%clk 0:01:49]}  dxe4 {[%clk 0:00:36]} 22. dxe4 {[%clk 0:01:48]}  Nfxe4 {[%clk 0:00:28]} 23. Nxe4 {[%clk 0:01:34]}  Bxe4 {[%clk 0:00:24]} 24. Ne6 {[%clk 0:01:27]}  Qf6 {[%clk 0:00:23]} 25. Qxf6 {[%clk 0:01:26]}  gxf6 {[%clk 0:00:23]} 26. Nxc5 {[%clk 0:01:27]}  Bxg2 {[%clk 0:00:20]} 27. Kxg2 {[%clk 0:01:28]} 1-0

[Event "November 21 Early 2023"]
[Site "https://www.chess.com"]
[Date "2023.11.21"]
[Round "3"]
[White "Pinheiro, Iung Alicio de O."]
[Black "Hua, Lefong"]
[Result "0-1"]
[Board "64"]
[TimeControl "180+1"]
[WhiteFideId "2104350"]
[BlackFideId "2602253"]
[WhiteElo "2283"]
[BlackElo "2723"]
[WhiteTeam "BRA"]
[BlackTeam "CAN"]
[WhiteClock "0:00:00"]
[BlackClock "0:00:18"]

1. c4 {[%clk 0:03:00]}  Nf6 {[%clk 0:03:00]} 2. g3 {[%clk 0:02:58]}  g6 {[%clk 0:03:00]} 3. Bg2 {[%clk 0:02:58]}  Bg7 {[%clk 0:03:01]} 4. Nc3 {[%clk 0:02:57]}  O-O {[%clk 0:03:01]} 5. d3 {[%clk 0:02:58]}  c5 {[%clk 0:03:01]} 6. Bg5 {[%clk 0:02:53]}  Nc6 {[%clk 0:03:01]} 7. Qd2 {[%clk 0:02:53]}  d6 {[%clk 0:03:01]} 8. Bh6 {[%clk 0:02:52]}  Rb8 {[%clk 0:02:59]} 9. h4 {[%clk 0:02:52]}  e6 {[%clk 0:02:53]} 10. h5 {[%clk 0:02:50]}  Nxh5 {[%clk 0:02:49]} 11. Bxg7 {[%clk 0:02:39]}  Kxg7 {[%clk 0:02:48]} 12. g4 {[%clk 0:02:39]}  f5 {[%clk 0:02:26]} 13. gxh5 {[%clk 0:02:37]}  g5 {[%clk 0:02:26]} 14. h6+ {[%clk 0:02:36]}  Kh8 {[%clk 0:02:26]} 15. Nf3 {[%clk 0:02:30]}  Rg8 {[%clk 0:02:25]} 16. e3 {[%clk 0:01:54]}  Qf6 {[%clk 0:02:21]} 17. O-O-O {[%clk 0:01:54]}  a6 {[%clk 0:02:11]} 18. d4 {[%clk 0:01:52]}  g4 {[%clk 0:02:08]} 19. Ng1 {[%clk 0:01:50]}  cxd4 {[%clk 0:01:57]} 20. exd4 {[%clk 0:01:49]}  Ne7 {[%clk 0:01:56]} 21. Nge2 {[%clk 0:01:46]}  b5 {[%clk 0:01:55]} 22. c5 {[%clk 0:01:42]}  b4 {[%clk 0:01:48]} 23. Na4 {[%clk 0:01:38]}  b3 {[%clk 0:01:40]} 24. a3 {[%clk 0:01:32]}  Bd7 {[%clk 0:01:34]} 25. Nb6 {[%clk 0:01:31]}  Bb5 {[%clk 0:01:25]} 26. Nc3 {[%clk 0:01:28]}  f4 {[%clk 0:01:17]} 27. Be4 {[%clk 0:01:25]}  Rgd8 {[%clk 0:01:06]} 28. Qe1 {[%clk 0:01:03]}  Nf5 {[%clk 0:00:53]} 29. Bxf5 {[%clk 0:00:56]}  exf5 {[%clk 0:00:53]} 30. Kb1 {[%clk 0:00:53]}  Bc6 {[%clk 0:00:45]} 31. Rg1 {[%clk 0:00:45]}  Bf3 {[%clk 0:00:42]} 32. Rd2 {[%clk 0:00:39]}  Re8 {[%clk 0:00:42]} 33. Qc1 {[%clk 0:00:39]}  dxc5 {[%clk 0:00:40]} 34. dxc5 {[%clk 0:00:39]}  Qc6 {[%clk 0:00:39]} 35. Re1 {[%clk 0:00:24]}  Qxc5 {[%clk 0:00:28]} 36. Nd7 {[%clk 0:00:23]}  Qc4 {[%clk 0:00:21]} 37. Nxb8 {[%clk 0:00:21]}  Rxb8 {[%clk 0:00:21]} 38. Rd7 {[%clk 0:00:18]}  Qc6 {[%clk 0:00:20]} 39. Qd2 {[%clk 0:00:18]}  Qxh6 {[%clk 0:00:20]} 40. Qd4+ {[%clk 0:00:17]}  Kg8 {[%clk 0:00:20]} 41. Qc4+ {[%clk 0:00:15]}  Kh8 {[%clk 0:00:20]} 42. Qf7 {[%clk 0:00:16]}  Rg8 {[%clk 0:00:17]} 43. Qxg8+ {[%clk 0:00:15]}  Kxg8 {[%clk 0:00:17]} 44. Re8+ {[%clk 0:00:15]}  Qf8 {[%clk 0:00:18]} 45. Rxf8+ {[%clk 0:00:16]}  Kxf8 {[%clk 0:00:19]} 46. Rxh7 {[%clk 0:00:14]}  g3 {[%clk 0:00:19]} 47. fxg3 {[%clk 0:00:14]}  fxg3 {[%clk 0:00:20]} 48. Rh6 {[%clk 0:00:12]}  Kg7 {[%clk 0:00:19]} 49. Rh3 {[%clk 0:00:12]}  f4 {[%clk 0:00:19]} 50. Rh4 {[%clk 0:00:02]}  g2 {[%clk 0:00:18]} 51. Ne2 {[%clk 0:00:00]}  Bxe2 {[%clk 0:00:18]} 0-1

[Event "November 21 Early 2023"]
[Site "https://www.chess.com"]
[Date "2023.11.21"]
[Round "3"]
[White "Fiedorek, Michal"]
[Black "Karthik Rajaa"]
[Result "0-1"]
[Board "65"]
[TimeControl "180+1"]
[WhiteFideId "1199528"]
[BlackFideId "25035215"]
[WhiteElo "2135"]
[BlackElo "2276"]
[WhiteTeam "POL"]
[BlackTeam "IND"]
[WhiteClock "0:00:14"]
[BlackClock "0:00:12"]

1. e4 {[%clk 0:03:00]}  c6 {[%clk 0:03:00]} 2. d4 {[%clk 0:02:59]}  d5 {[%clk 0:03:00]} 3. Nc3 {[%clk 0:03:00]}  dxe4 {[%clk 0:03:00]} 4. Nxe4 {[%clk 0:03:01]}  Nf6 {[%clk 0:03:01]} 5. Nxf6+ {[%clk 0:03:01]}  exf6 {[%clk 0:03:02]} 6. c3 {[%clk 0:03:02]}  Bd6 {[%clk 0:03:02]} 7. Bd3 {[%clk 0:03:03]}  O-O {[%clk 0:03:02]} 8. Qc2 {[%clk 0:03:03]}  Re8+ {[%clk 0:03:03]} 9. Ne2 {[%clk 0:03:04]}  h5 {[%clk 0:03:03]} 10. O-O {[%clk 0:03:03]}  Nd7 {[%clk 0:03:03]} 11. Nf4 {[%clk 0:03:02]}  Bxf4 {[%clk 0:03:00]} 12. Bxf4 {[%clk 0:03:02]}  Nf8 {[%clk 0:03:00]} 13. Rfe1 {[%clk 0:03:00]}  Be6 {[%clk 0:02:56]} 14. Rad1 {[%clk 0:02:55]}  h4 {[%clk 0:02:51]} 15. h3 {[%clk 0:02:52]}  Qd7 {[%clk 0:02:51]} 16. c4 {[%clk 0:02:45]}  Rad8 {[%clk 0:02:30]} 17. Bf1 {[%clk 0:02:37]}  Ng6 {[%clk 0:02:25]} 18. Bh2 {[%clk 0:02:34]}  Bf5 {[%clk 0:02:26]} 19. Qc3 {[%clk 0:02:32]}  Rxe1 {[%clk 0:02:24]} 20. Qxe1 {[%clk 0:02:31]}  Re8 {[%clk 0:02:22]} 21. Qa5 {[%clk 0:02:28]}  b6 {[%clk 0:02:19]} 22. Qc3 {[%clk 0:02:27]}  Nf8 {[%clk 0:02:05]} 23. a4 {[%clk 0:02:15]}  Ne6 {[%clk 0:02:01]} 24. a5 {[%clk 0:02:14]}  Ng5 {[%clk 0:01:58]} 25. axb6 {[%clk 0:02:08]}  axb6 {[%clk 0:01:59]} 26. Qb4 {[%clk 0:02:07]}  Qa7 {[%clk 0:01:08]} 27. Qd6 {[%clk 0:02:02]}  Qa4 {[%clk 0:00:59]} 28. Rc1 {[%clk 0:01:46]}  Bg6 {[%clk 0:00:46]} 29. Qf4 {[%clk 0:01:39]}  Qb3 {[%clk 0:00:35]} 30. Qxh4 {[%clk 0:01:00]}  Qxb2 {[%clk 0:00:32]} 31. Qf4 {[%clk 0:01:00]}  Ne6 {[%clk 0:00:27]} 32. Qe3 {[%clk 0:01:00]}  Qxd4 {[%clk 0:00:26]} 33. Qxd4 {[%clk 0:00:50]}  Nxd4 {[%clk 0:00:27]} 34. Bc7 {[%clk 0:00:50]}  b5 {[%clk 0:00:14]} 35. cxb5 {[%clk 0:00:48]}  cxb5 {[%clk 0:00:15]} 36. Bb6 {[%clk 0:00:49]}  Ne2+ {[%clk 0:00:15]} 37. Bxe2 {[%clk 0:00:44]}  Rxe2 {[%clk 0:00:16]} 38. Bd4 {[%clk 0:00:28]}  Ra2 {[%clk 0:00:11]} 39. Rc8+ {[%clk 0:00:26]}  Kh7 {[%clk 0:00:11]} 40. Rb8 {[%clk 0:00:27]}  Bd3 {[%clk 0:00:12]} 41. Kh2 {[%clk 0:00:23]}  Bc4 {[%clk 0:00:12]} 42. Kg3 {[%clk 0:00:23]}  Rd2 {[%clk 0:00:12]} 43. Be3 {[%clk 0:00:23]}  Rd5 {[%clk 0:00:13]} 44. h4 {[%clk 0:00:20]}  Kg6 {[%clk 0:00:12]} 45. Rb7 {[%clk 0:00:19]}  Rd3 {[%clk 0:00:12]} 46. h5+ {[%clk 0:00:18]}  Kxh5 {[%clk 0:00:12]} 47. Kf3 {[%clk 0:00:17]}  Bd5+ {[%clk 0:00:11]} 48. Ke2 {[%clk 0:00:14]}  Rxe3+ {[%clk 0:00:12]} 0-1

[Event "November 21 Early 2023"]
[Site "https://www.chess.com"]
[Date "2023.11.21"]
[Round "3"]
[White "vishwa_vijeta"]
[Black "Hasangatin, Ramil"]
[Result "0-1"]
[Board "66"]
[TimeControl "180+1"]
[BlackFideId "4122160"]
[WhiteElo "2533"]
[BlackElo "2317"]
[BlackTeam "RUS"]
[WhiteClock "0:00:23"]
[BlackClock "0:01:53"]

1. e4 {[%clk 0:03:00]}  d5 {[%clk 0:02:59]} 2. exd5 {[%clk 0:03:00]}  Qxd5 {[%clk 0:03:00]} 3. Nc3 {[%clk 0:03:00]}  Qd6 {[%clk 0:03:01]} 4. Nf3 {[%clk 0:03:00]}  Nf6 {[%clk 0:03:01]} 5. d4 {[%clk 0:03:01]}  c6 {[%clk 0:03:02]} 6. Bc4 {[%clk 0:03:01]}  Bg4 {[%clk 0:03:01]} 7. O-O {[%clk 0:02:58]}  Nbd7 {[%clk 0:03:01]} 8. Be3 {[%clk 0:02:56]}  e6 {[%clk 0:03:02]} 9. h3 {[%clk 0:02:56]}  Bh5 {[%clk 0:03:01]} 10. Qe2 {[%clk 0:02:55]}  Be7 {[%clk 0:03:00]} 11. Rad1 {[%clk 0:02:54]}  O-O {[%clk 0:03:00]} 12. a3 {[%clk 0:02:42]}  Rfe8 {[%clk 0:02:58]} 13. Rfe1 {[%clk 0:02:20]}  Rad8 {[%clk 0:02:57]} 14. Bg5 {[%clk 0:02:16]}  h6 {[%clk 0:02:55]} 15. Bh4 {[%clk 0:02:16]}  Qc7 {[%clk 0:02:54]} 16. Qe3 {[%clk 0:01:53]}  Bd6 {[%clk 0:02:52]} 17. Ne4 {[%clk 0:01:49]}  Bf4 {[%clk 0:02:44]} 18. Qb3 {[%clk 0:01:44]}  g5 {[%clk 0:02:41]} 19. Bg3 {[%clk 0:01:32]}  Nxe4 {[%clk 0:02:41]} 20. Rxe4 {[%clk 0:01:31]}  Bxg3 {[%clk 0:02:39]} 21. fxg3 {[%clk 0:01:31]}  Nb6 {[%clk 0:02:36]} 22. g4 {[%clk 0:01:15]}  Bg6 {[%clk 0:02:35]} 23. Ree1 {[%clk 0:01:15]}  c5 {[%clk 0:02:29]} 24. Ne5 {[%clk 0:01:12]}  cxd4 {[%clk 0:02:25]} 25. Bxe6 {[%clk 0:01:05]}  Rxe6 {[%clk 0:02:18]} 26. Nxg6 {[%clk 0:01:05]}  Rxg6 {[%clk 0:02:18]} 27. Rf1 {[%clk 0:01:03]}  Qc4 {[%clk 0:02:10]} 28. Qf3 {[%clk 0:00:59]}  Kg7 {[%clk 0:02:09]} 29. Qf5 {[%clk 0:00:47]}  Qe6 {[%clk 0:02:05]} 30. Qf2 {[%clk 0:00:45]}  Rd6 {[%clk 0:02:01]} 31. Rde1 {[%clk 0:00:29]}  Qf6 {[%clk 0:02:01]} 32. Qg3 {[%clk 0:00:26]}  Qd8 {[%clk 0:02:01]} 33. Qe5+ {[%clk 0:00:25]}  Rgf6 {[%clk 0:01:58]} 34. Rf5 {[%clk 0:00:25]}  Re6 {[%clk 0:01:53]} 35. Qg3 {[%clk 0:00:24]}  Rxe1+ {[%clk 0:01:52]} 36. Qxe1 {[%clk 0:00:24]}  Rxf5 {[%clk 0:01:53]} 37. gxf5 {[%clk 0:00:23]}  Qf6 {[%clk 0:01:53]} 0-1

[Event "November 21 Early 2023"]
[Site "https://www.chess.com"]
[Date "2023.11.21"]
[Round "3"]
[White "Ishbaev, Alibek"]
[Black "Tasev, Dejan"]
[Result "1-0"]
[Board "68"]
[TimeControl "180+1"]
[WhiteFideId "14205017"]
[BlackFideId "936618"]
[WhiteElo "2397"]
[BlackElo "2248"]
[WhiteTeam "UZB"]
[BlackTeam "SRB"]
[WhiteClock "0:00:21"]
[BlackClock "0:00:05"]

1. c4 {[%clk 0:03:00]}  Nf6 {[%clk 0:02:59]} 2. Nc3 {[%clk 0:03:00]}  g6 {[%clk 0:02:59]} 3. e4 {[%clk 0:03:00]}  d6 {[%clk 0:03:00]} 4. g3 {[%clk 0:03:00]}  Bg7 {[%clk 0:03:00]} 5. Bg2 {[%clk 0:03:01]}  O-O {[%clk 0:03:00]} 6. Nge2 {[%clk 0:03:01]}  c5 {[%clk 0:03:01]} 7. O-O {[%clk 0:03:02]}  Nc6 {[%clk 0:03:02]} 8. d3 {[%clk 0:03:03]}  Rb8 {[%clk 0:03:02]} 9. h3 {[%clk 0:03:03]}  a6 {[%clk 0:03:02]} 10. f4 {[%clk 0:03:03]}  b5 {[%clk 0:03:02]} 11. e5 {[%clk 0:03:02]}  dxe5 {[%clk 0:03:02]} 12. Bxc6 {[%clk 0:03:01]}  exf4 {[%clk 0:03:02]} 13. Bxf4 {[%clk 0:03:01]}  Rb6 {[%clk 0:02:58]} 14. cxb5 {[%clk 0:03:00]}  axb5 {[%clk 0:02:58]} 15. Bg2 {[%clk 0:02:59]}  Nh5 {[%clk 0:02:51]} 16. Be3 {[%clk 0:02:52]}  Rd6 {[%clk 0:02:48]} 17. Bxc5 {[%clk 0:02:38]}  Rxd3 {[%clk 0:02:48]} 18. Qe1 {[%clk 0:02:35]}  b4 {[%clk 0:02:46]} 19. Ne4 {[%clk 0:02:12]}  Bxb2 {[%clk 0:02:36]} 20. Rd1 {[%clk 0:02:02]}  Ba6 {[%clk 0:02:29]} 21. Rxd3 {[%clk 0:01:46]}  Qxd3 {[%clk 0:02:14]} 22. Nf4 {[%clk 0:01:37]}  Bd4+ {[%clk 0:01:59]} 23. Kh2 {[%clk 0:01:28]}  Nxf4 {[%clk 0:01:52]} 24. Rxf4 {[%clk 0:01:25]}  Be5 {[%clk 0:01:42]} 25. Rf3 {[%clk 0:01:22]}  Qc4 {[%clk 0:01:34]} 26. Bxe7 {[%clk 0:01:15]}  Re8 {[%clk 0:01:24]} 27. Qxb4 {[%clk 0:01:15]}  Qxa2 {[%clk 0:01:17]} 28. Nf6+ {[%clk 0:00:54]}  Bxf6 {[%clk 0:01:16]} 29. Bxf6 {[%clk 0:00:55]}  Bc8 {[%clk 0:01:05]} 30. Qb2 {[%clk 0:00:25]}  Qxb2 {[%clk 0:00:54]} 31. Bxb2 {[%clk 0:00:25]}  Be6 {[%clk 0:00:41]} 32. Bf6 {[%clk 0:00:22]}  h6 {[%clk 0:00:40]} 33. h4 {[%clk 0:00:21]}  Kh7 {[%clk 0:00:39]} 34. Rd3 {[%clk 0:00:21]}  Rc8 {[%clk 0:00:33]} 35. Rd8 {[%clk 0:00:21]}  Rxd8 {[%clk 0:00:33]} 36. Bxd8 {[%clk 0:00:22]}  f5 {[%clk 0:00:33]} 37. Bf6 {[%clk 0:00:22]}  Kg8 {[%clk 0:00:33]} 38. Be5 {[%clk 0:00:22]}  Kf7 {[%clk 0:00:34]} 39. Bf4 {[%clk 0:00:22]}  Kg7 {[%clk 0:00:33]} 40. Kg1 {[%clk 0:00:23]}  Bc4 {[%clk 0:00:33]} 41. Kf2 {[%clk 0:00:23]}  Bf7 {[%clk 0:00:32]} 42. Ke3 {[%clk 0:00:24]}  Bb3 {[%clk 0:00:32]} 43. Kd4 {[%clk 0:00:25]}  Kh7 {[%clk 0:00:31]} 44. Bd5 {[%clk 0:00:25]}  Ba4 {[%clk 0:00:30]} 45. Ke5 {[%clk 0:00:25]}  Kg7 {[%clk 0:00:31]} 46. Kd6 {[%clk 0:00:25]}  g5 {[%clk 0:00:29]} 47. hxg5 {[%clk 0:00:25]}  hxg5 {[%clk 0:00:29]} 48. Bxg5 {[%clk 0:00:25]}  Kg6 {[%clk 0:00:30]} 49. Bf4 {[%clk 0:00:26]}  Kh5 {[%clk 0:00:30]} 50. Ke5 {[%clk 0:00:26]}  Kg4 {[%clk 0:00:29]} 51. Bc4 {[%clk 0:00:24]}  Bc2 {[%clk 0:00:28]} 52. Be2+ {[%clk 0:00:24]}  Kh3 {[%clk 0:00:28]} 53. Kf6 {[%clk 0:00:23]}  Bb1 {[%clk 0:00:26]} 54. Kg5 {[%clk 0:00:23]}  Kg2 {[%clk 0:00:24]} 55. Bh5 {[%clk 0:00:21]}  Kf2 {[%clk 0:00:24]} 56. Bg6 {[%clk 0:00:21]}  Ke2 {[%clk 0:00:24]} 57. Bxf5 {[%clk 0:00:22]}  Ba2 {[%clk 0:00:25]} 58. Kf6 {[%clk 0:00:22]}  Kf3 {[%clk 0:00:26]} 59. Be5 {[%clk 0:00:22]}  Bg8 {[%clk 0:00:22]} 60. g4 {[%clk 0:00:22]}  Bb3 {[%clk 0:00:20]} 61. g5 {[%clk 0:00:23]}  Bg8 {[%clk 0:00:18]} 62. g6 {[%clk 0:00:23]}  Ke3 {[%clk 0:00:19]} 63. g7 {[%clk 0:00:24]}  Kf3 {[%clk 0:00:17]} 64. Be6 {[%clk 0:00:24]}  Bh7 {[%clk 0:00:18]} 65. Kg5 {[%clk 0:00:21]}  Ke4 {[%clk 0:00:05]} 66. Kh6 {[%clk 0:00:21]} 1-0

[Event "November 21 Early 2023"]
[Site "https://www.chess.com"]
[Date "2023.11.21"]
[Round "3"]
[White "Bobomurodova, Maftuna"]
[Black "Bodnaruk, Anastasia"]
[Result "0-1"]
[Board "70"]
[TimeControl "180+1"]
[WhiteFideId "14207400"]
[BlackFideId "4181751"]
[WhiteElo "1814"]
[BlackElo "2260"]
[WhiteTeam "UZB"]
[BlackTeam "RUS"]
[WhiteClock "0:00:14"]
[BlackClock "0:00:08"]

1. e4 {[%clk 0:02:59]}  c5 {[%clk 0:02:59]} 2. Nf3 {[%clk 0:02:59]}  d6 {[%clk 0:02:59]} 3. Bb5+ {[%clk 0:02:59]}  Nd7 {[%clk 0:02:58]} 4. O-O {[%clk 0:02:58]}  a6 {[%clk 0:02:56]} 5. Bd3 {[%clk 0:02:57]}  Ngf6 {[%clk 0:02:56]} 6. c3 {[%clk 0:02:57]}  e6 {[%clk 0:02:54]} 7. Bc2 {[%clk 0:02:57]}  b5 {[%clk 0:02:54]} 8. d4 {[%clk 0:02:57]}  Bb7 {[%clk 0:02:51]} 9. Re1 {[%clk 0:02:57]}  Be7 {[%clk 0:02:51]} 10. Nbd2 {[%clk 0:02:52]}  Qc7 {[%clk 0:02:51]} 11. Nf1 {[%clk 0:02:52]}  O-O {[%clk 0:02:49]} 12. Ng3 {[%clk 0:02:52]}  cxd4 {[%clk 0:02:42]} 13. cxd4 {[%clk 0:02:50]}  a5 {[%clk 0:02:39]} 14. Bg5 {[%clk 0:02:42]}  Nb6 {[%clk 0:02:18]} 15. Rc1 {[%clk 0:02:41]}  Qd8 {[%clk 0:02:12]} 16. Bxf6 {[%clk 0:02:35]}  Bxf6 {[%clk 0:02:12]} 17. Qd3 {[%clk 0:02:33]}  e5 {[%clk 0:02:04]} 18. Nf5 {[%clk 0:02:28]}  Nc4 {[%clk 0:01:52]} 19. b3 {[%clk 0:02:24]}  Na3 {[%clk 0:01:51]} 20. Red1 {[%clk 0:02:03]}  Nxc2 {[%clk 0:01:50]} 21. Rxc2 {[%clk 0:02:02]}  g6 {[%clk 0:01:39]} 22. Nh6+ {[%clk 0:01:55]}  Kh8 {[%clk 0:01:29]} 23. Ng4 {[%clk 0:01:52]}  Bg7 {[%clk 0:01:28]} 24. d5 {[%clk 0:01:31]}  f5 {[%clk 0:01:25]} 25. Ne3 {[%clk 0:01:30]}  fxe4 {[%clk 0:01:23]} 26. Qxe4 {[%clk 0:01:30]}  Rf4 {[%clk 0:01:23]} 27. Qd3 {[%clk 0:01:30]}  e4 {[%clk 0:01:22]} 28. Qxb5 {[%clk 0:01:23]}  Ba6 {[%clk 0:00:56]} 29. Qa4 {[%clk 0:01:18]}  Qf6 {[%clk 0:00:51]} 30. Ne1 {[%clk 0:01:14]}  Rf8 {[%clk 0:00:46]} 31. Rdd2 {[%clk 0:01:08]}  Bh6 {[%clk 0:00:44]} 32. Qd4 {[%clk 0:00:38]}  Qxd4 {[%clk 0:00:38]} 33. Rxd4 {[%clk 0:00:37]}  Rxf2 {[%clk 0:00:37]} 34. Rxf2 {[%clk 0:00:31]}  Bxe3 {[%clk 0:00:37]} 35. Rd2 {[%clk 0:00:29]}  Bd3 {[%clk 0:00:16]} 36. Nxd3 {[%clk 0:00:28]}  exd3 {[%clk 0:00:15]} 37. Kf1 {[%clk 0:00:28]}  Bxf2 {[%clk 0:00:14]} 38. Rxf2 {[%clk 0:00:26]}  Rc8 {[%clk 0:00:11]} 39. Rd2 {[%clk 0:00:24]}  Rc2 {[%clk 0:00:07]} 40. Rxd3 {[%clk 0:00:24]}  Rxa2 {[%clk 0:00:08]} 41. Re3 {[%clk 0:00:24]}  Rb2 {[%clk 0:00:05]} 42. Re6 {[%clk 0:00:19]}  Rxb3 {[%clk 0:00:06]} 43. Rxd6 {[%clk 0:00:19]}  Kg7 {[%clk 0:00:04]} 44. Ra6 {[%clk 0:00:19]}  Rb5 {[%clk 0:00:03]} 45. d6 {[%clk 0:00:19]}  Rd5 {[%clk 0:00:03]} 46. Ra7+ {[%clk 0:00:19]}  Kf6 {[%clk 0:00:03]} 47. d7 {[%clk 0:00:20]}  Ke7 {[%clk 0:00:03]} 48. d8=Q+ {[%clk 0:00:19]}  Kxd8 {[%clk 0:00:03]} 49. Rxh7 {[%clk 0:00:19]}  a4 {[%clk 0:00:02]} 50. Ra7 {[%clk 0:00:20]}  Rd4 {[%clk 0:00:03]} 51. Ke2 {[%clk 0:00:20]}  Kc8 {[%clk 0:00:03]} 52. Ke3 {[%clk 0:00:20]}  Rg4 {[%clk 0:00:04]} 53. Kf3 {[%clk 0:00:20]}  Rb4 {[%clk 0:00:03]} 54. Ra6 {[%clk 0:00:20]}  g5 {[%clk 0:00:03]} 55. g3 {[%clk 0:00:19]}  g4+ {[%clk 0:00:03]} 56. Kg2 {[%clk 0:00:18]}  Kb7 {[%clk 0:00:03]} 57. Ra5 {[%clk 0:00:18]}  Kb6 {[%clk 0:00:04]} 58. Ra8 {[%clk 0:00:18]}  Kb5 {[%clk 0:00:05]} 59. h3 {[%clk 0:00:18]}  Rb2+ {[%clk 0:00:04]} 60. Kh1 {[%clk 0:00:17]}  Rb3 {[%clk 0:00:03]} 61. hxg4 {[%clk 0:00:17]}  Rxg3 {[%clk 0:00:03]} 62. Rg8 {[%clk 0:00:11]}  a3 {[%clk 0:00:03]} 63. g5 {[%clk 0:00:11]}  Kb4 {[%clk 0:00:02]} 64. g6 {[%clk 0:00:11]}  a2 {[%clk 0:00:02]} 65. Rb8+ {[%clk 0:00:11]}  Kc3 {[%clk 0:00:02]} 66. Rc8+ {[%clk 0:00:11]}  Kb2 {[%clk 0:00:02]} 67. Rb8+ {[%clk 0:00:11]}  Rb3 {[%clk 0:00:03]} 68. Ra8 {[%clk 0:00:09]}  Ra3 {[%clk 0:00:03]} 69. Rb8+ {[%clk 0:00:09]}  Kc3 {[%clk 0:00:03]} 70. Rc8+ {[%clk 0:00:09]}  Kb2 {[%clk 0:00:03]} 71. Rb8+ {[%clk 0:00:09]}  Rb3 {[%clk 0:00:03]} 72. Ra8 {[%clk 0:00:10]}  a1=Q+ {[%clk 0:00:03]} 73. Rxa1 {[%clk 0:00:09]}  Kxa1 {[%clk 0:00:04]} 74. Kh2 {[%clk 0:00:08]}  Rb6 {[%clk 0:00:04]} 75. g7 {[%clk 0:00:07]}  Rg6 {[%clk 0:00:05]} 76. Kh3 {[%clk 0:00:08]}  Rxg7 {[%clk 0:00:05]} 77. Kh4 {[%clk 0:00:09]}  Kb2 {[%clk 0:00:06]} 78. Kh5 {[%clk 0:00:09]}  Kc3 {[%clk 0:00:07]} 79. Kh4 {[%clk 0:00:10]}  Rg1 {[%clk 0:00:07]} 80. Kh5 {[%clk 0:00:11]}  Kd4 {[%clk 0:00:07]} 81. Kh6 {[%clk 0:00:12]}  Ke5 {[%clk 0:00:08]} 82. Kh5 {[%clk 0:00:13]}  Kf4 {[%clk 0:00:08]} 83. Kh4 {[%clk 0:00:14]}  Rh1# {[%clk 0:00:08]} 0-1

[Event "November 21 Early 2023"]
[Site "https://www.chess.com"]
[Date "2023.11.21"]
[Round "3"]
[White "Martinez Alcantara, Jose Eduardo"]
[Black "Lund, Gunnar"]
[Result "1-0"]
[Board "71"]
[TimeControl "180+1"]
[WhiteFideId "3805662"]
[BlackFideId "1520814"]
[WhiteElo "2703"]
[BlackElo "2233"]
[WhiteTeam "PER"]
[BlackTeam "NOR"]
[WhiteClock "0:00:49"]
[BlackClock "0:00:17"]

1. e4 {[%clk 0:03:00]}  e6 {[%clk 0:03:00]} 2. d4 {[%clk 0:02:57]}  d5 {[%clk 0:03:00]} 3. exd5 {[%clk 0:02:56]}  exd5 {[%clk 0:03:00]} 4. Nf3 {[%clk 0:02:57]}  Nf6 {[%clk 0:03:01]} 5. Bd3 {[%clk 0:02:57]}  Be7 {[%clk 0:02:44]} 6. O-O {[%clk 0:02:56]}  Bg4 {[%clk 0:02:44]} 7. Bf4 {[%clk 0:02:51]}  O-O {[%clk 0:02:44]} 8. Nbd2 {[%clk 0:02:51]}  Nbd7 {[%clk 0:02:42]} 9. c3 {[%clk 0:02:51]}  Re8 {[%clk 0:02:41]} 10. Qc2 {[%clk 0:02:51]}  Bh5 {[%clk 0:02:38]} 11. Rfe1 {[%clk 0:02:51]}  Bg6 {[%clk 0:02:38]} 12. Bxg6 {[%clk 0:02:46]}  hxg6 {[%clk 0:02:38]} 13. Qb3 {[%clk 0:02:41]}  Nb6 {[%clk 0:02:25]} 14. Re2 {[%clk 0:02:30]}  Bd6 {[%clk 0:02:21]} 15. Be5 {[%clk 0:02:27]}  Bxe5 {[%clk 0:02:15]} 16. Nxe5 {[%clk 0:02:28]}  Nfd7 {[%clk 0:02:14]} 17. Rae1 {[%clk 0:02:18]}  Nxe5 {[%clk 0:02:15]} 18. dxe5 {[%clk 0:02:18]}  Qd7 {[%clk 0:02:12]} 19. Nf3 {[%clk 0:02:19]}  c5 {[%clk 0:02:11]} 20. Qd1 {[%clk 0:02:17]}  Qf5 {[%clk 0:02:00]} 21. b4 {[%clk 0:01:41]}  cxb4 {[%clk 0:01:58]} 22. cxb4 {[%clk 0:01:42]}  Re7 {[%clk 0:01:28]} 23. Nd4 {[%clk 0:01:41]}  Qd7 {[%clk 0:01:28]} 24. e6 {[%clk 0:01:31]}  fxe6 {[%clk 0:01:28]} 25. Qd3 {[%clk 0:01:31]}  e5 {[%clk 0:01:18]} 26. Qxg6 {[%clk 0:01:26]}  e4 {[%clk 0:01:12]} 27. Re3 {[%clk 0:01:09]}  Qe8 {[%clk 0:01:05]} 28. Qg4 {[%clk 0:01:08]}  Qd7 {[%clk 0:01:05]} 29. Qh4 {[%clk 0:01:01]}  Rf8 {[%clk 0:00:57]} 30. Rh3 {[%clk 0:01:00]}  Rf6 {[%clk 0:00:57]} 31. Qh7+ {[%clk 0:00:55]}  Kf8 {[%clk 0:00:55]} 32. Qh8+ {[%clk 0:00:53]}  Kf7 {[%clk 0:00:56]} 33. Rg3 {[%clk 0:00:53]}  g6 {[%clk 0:00:42]} 34. Rh3 {[%clk 0:00:51]}  g5 {[%clk 0:00:20]} 35. Rh7+ {[%clk 0:00:48]}  Kg6 {[%clk 0:00:17]} 36. Rh6+ {[%clk 0:00:49]} 1-0